Workbook

Sheet วิธีการใช้
B3: โปรแกรมช่วยทดสอบสมมติฐานคะแนนสอบกับเกณฑ์ด้วยการทดสอบที กรณีกลุ่มตัวอย่าง 1 กลุ่ม (t-test one sample)
B4: ชุดโปรแกรมช่วยการวิเคราะห์งานวิจัยทางการศึกษา
B5: พัฒนาโดย...นายปกรณ์ ประจันบาน มหาวิทยาลัยนเรศวร, 2541
B6: เพิ่มเติมโดย...นายศักดิ์สิทธิ์ วัชรารัตน์ วิทยาลัยสารพัดช่างพิษณุโลก สำนักงานคณะกรรมการการอาชีวศึกษา, 2552
B7: email: saksit2500@gmail.com; saksit2500@hotmail.com; saksit2500@yahoo.com
B10: คำแนะนำในการใช้งาน
B11: เนื่องจากงานวิจัยทางการศึกษาบางกรณี ต้องมีการวิเคราะห์ข้อมูลทดสอบค่าที เพื่อเปรียบเทียบระหว่างค่าเฉลี่ยของคะแนนสอบกับเกณฑ์ที่ตั้งไว้ แล้วจึงแปลผลและรายงานผลการวิจัยในรูปของตาราง
B12: ดังนั้นโปรแกรมช่วยทดสอบสมมติฐานคะแนนสอบหลังเรียนกับเกณฑ์ด้วยการทดสอบที กรณีกลุ่มตัวอย่าง 1 กลุ่ม (t-test one sample) นี้ จะช่วยวิเคราะห์ข้อมูลที่ได้จากการเก็บรวบรวมข้อมูลจากกลุ่มตัวอย่าง 1 กลุ่ม ณ ระดับความเชื่อมั่นที่ 95 % หรือระดับความเชื่อมั่นที่ 99 % โดยมีขั้นตอนการใช้ ดังต่อไปนี้
B13: 1. ที่แผ่นงานกรอกข้อมูล ให้กรอกคะแนนในคอลัมน์คะแนนสอบหลังเรียนจนครบทุกคน โดยได้จัดเตรียมไว้ให้จำนวนตั้งแต่ 1-1,000 คน
B14: 2. ที่แผ่นงานกรอกข้อมูล ให้กรอกคะแนนเต็มของการทดสอบที่คอลัมน์ L6
B15: 3. ที่แผ่นงานกรอกข้อมูล ให้กรอกเกณฑ์ร้อยละของคะแนนที่ต้องการเปรียบเทียบที่คอลัมน์ L7
B16: 4. เมื่อกรอกข้อมูลเสร็จสิ้นแล้ว สามารถตรวจสอบผลได้ที่แผ่นงานผลวิเคราะห์.01 (ระดับความเชื่อมั่นที่ 99 %) และแผ่นงานผลวิเคราะห์.05 (ระดับความเชื่อมั่นที่ 95 %)
B17: 5. กลุ่มตัวอย่างมีจำนวนมากพอ หมายถึงกลุ่มตัวอย่าง ตั้งแต่จำนวน 30 คนขึ้นไป
B18: 6. เมื่อต้องการนำตารางไปจัดทำรายงาน ให้เลือกข้อความและตาราง แล้วคัดลอกไปวางในเวิร์ด
B19: 7. ให้บันทึกเป็นแฟ้มข้อมูลในชื่อใหม่ตามต้องการ

Sheet กรอกข้อมูล
A1: กรอกข้อมูลคะแนนทดสอบ
A2: คนที่ | B2: คะแนน
B3: หลังเรียน | G3: <== ให้พิมพ์เรื่องที่ศึกษาวิจัยลงในเซลล์ B3
A4: 1 | B4: 19 | C4: =COUNT(B4) -> 1
A5: 2 | B5: 27 | C5: =COUNT(B5) -> 1 | H5: โปรดกรอกข้อมูลคะแนนและร้อยละที่ท่านทดสอบ ในช่องด้านล่างนี้ | O5: ตัวอย่างการกรอกข้อมูล เมื่อกำหนดเกณฑ์ค่าคงที่
A6: 3 | B6: 33 | C6: 1 | H6: คะแนนเต็มของการทดสอบ | L6: 50 | M6: คะแนน | O6: คะแนนเต็มของการทดสอบ | S6: 100 | T6: คะแนน
A7: 4 | B7: 26 | C7: 1 | H7: ร้อยละของคะแนนเกณฑ์ที่ต้องการทดสอบ | L7: 70 | M7: % | O7: ร้อยละของคะแนนเกณฑ์ที่ต้องการทดสอบ | S7: 87.8 | T7: %
A8: 5 | B8: 21 | C8: 1 | L8: Ý | S8: Ý
A9: 6 | B9: 30 | C9: 1 | O9: กรณีใช้เกณฑ์ที่ทดสอบเป็นค่าคงที่ใด ๆ ให้ปรับใช้ดังนี้
A10: 7 | B10: 35 | C10: 1 | O10: 1. ให้พิมพ์คะแนนเต็มเป็น 100 คะแนนในเซลล์ L6
A11: 8 | B11: 22 | C11: 1 | O11: 2. ให้พิมพ์ค่าคงที่ลงในช่องร้อยละของเซลล์ L7
A12: 9 | B12: 25 | C12: 1 | O12: ตัวอย่าง เกณฑ์ทัศนคติที่นักศึกษามีต่อครูวิทยาลัยครูอุตรดิตถ์
A13: 10 | B13: 20 | C13: 1 | O13: เท่ากับ 87.80 คะแนน (จากมาตรวัดระหว่าง 23-115)
A14: 11 | B14: 38 | C14: 1 | O14: ให้พิมพ์ 100 ลงในเซลล์ L6 และ 87.80 ลงในเซลล์ L7
A15: 12 | B15: 24 | C15: 1 | O15: ที่มา: ระพินทร์ โพธิ์ศรี.2523. รายงานวิจัยเรื่องการศึกษาเจตคติของ
A16: 13 | B16: 33 | C16: 1 | O16: นักศึกษาครูที่มีต่อสถาบันการฝึกหัดครูและอาชีพครู. อุตรดิตถ์:
A17: 14 | B17: 20 | C17: 1 | O17: แผนกเอกสารการพิมพ์วิทยาลัยครูอุตรดิตถ์. หน้า 30. อ้างถึงใน
A18: 15 | B18: 18 | C18: 1 | O18: ระพินทร์ โพธิ์ศรี.2549.สถิติเพื่อการวิจัย.สำนักพิมพ์แห่ง
A19: 16 | B19: 34 | C19: 1 | O19: จุฬาลงกรณ์มหาวิทยาลัย. หน้า 80.
A20: 17 | B20: 22 | C20: 1
A21: 18 | B21: 27 | C21: 1
A22: 19 | B22: 26 | C22: 1
A23: 20 | B23: 19 | C23: 1
A24: 21 | B24: 16 | C24: 1
A25: 22 | B25: 31 | C25: 1
A26: 23 | B26: 29 | C26: 1
A27: 24 | B27: 21 | C27: 1
A28: 25 | B28: 18 | C28: 1
A29: 26 | B29: 25 | C29: 1
A30: 27 | B30: 33 | C30: 1
A31: 28 | B31: 35 | C31: 1
A32: 29 | B32: 20 | C32: 1
A33: 30 | B33: 28 | C33: 1
A34: 31 | B34: 22 | C34: 1
A35: 32 | C35: 0
A36: 33 | C36: 0
A37: 34 | C37: 0
A38: 35 | C38: 0
A39: 36 | C39: 0
A40: 37 | C40: 0
A41: 38 | C41: 0
A42: 39 | C42: 0
A43: 40 | C43: 0
A44: 41 | C44: 0
A45: 42 | C45: 0
A46: 43 | C46: 0
A47: 44 | C47: 0
A48: 45 | C48: 0
A49: 46 | C49: 0
A50: 47 | C50: 0
A51: 48 | C51: 0
A52: 49 | C52: 0
A53: 50 | C53: 0
A54: 51 | C54: 0
A55: 52 | C55: 0
A56: 53 | C56: 0
A57: 54 | C57: 0
A58: 55 | C58: 0
A59: 56 | C59: 0
A60: 57 | C60: 0
A61: 58 | C61: 0
A62: 59 | C62: 0
A63: 60 | C63: 0
A64: 61 | C64: 0
A65: 62 | C65: 0
A66: 63 | C66: 0
A67: 64 | C67: 0
A68: 65 | C68: 0
A69: 66 | C69: =COUNT(B69) -> 0
A70: 67 | C70: 0
A71: 68 | C71: 0
A72: 69 | C72: 0
A73: 70 | C73: 0
A74: 71 | C74: 0
A75: 72 | C75: 0
A76: 73 | C76: 0
A77: 74 | C77: 0
A78: 75 | C78: 0
A79: 76 | C79: 0
A80: 77 | C80: 0
A81: 78 | C81: 0
A82: 79 | C82: 0
A83: 80 | C83: 0
A84: 81 | C84: 0
A85: 82 | C85: 0
A86: 83 | C86: 0
A87: 84 | C87: 0
A88: 85 | C88: 0
A89: 86 | C89: 0
A90: 87 | C90: 0
A91: 88 | C91: 0
A92: 89 | C92: 0
A93: 90 | C93: 0
A94: 91 | C94: 0
A95: 92 | C95: 0
A96: 93 | C96: 0
A97: 94 | C97: 0
A98: 95 | C98: 0
A99: 96 | C99: 0
A100: 97 | C100: 0
A101: 98 | C101: 0
A102: 99 | C102: 0
A103: 100 | C103: 0
A104: 101 | C104: 0
A105: 102 | C105: 0
A106: 103 | C106: 0
A107: 104 | C107: 0
A108: 105 | C108: 0
A109: 106 | C109: 0
A110: 107 | C110: 0
A111: 108 | C111: 0
A112: 109 | C112: 0
A113: 110 | C113: 0
A114: 111 | C114: 0
A115: 112 | C115: 0
A116: 113 | C116: 0
A117: 114 | C117: 0
A118: 115 | C118: 0
A119: 116 | C119: 0
A120: 117 | C120: 0
A121: 118 | C121: 0
A122: 119 | C122: 0
A123: 120 | C123: 0
A124: 121 | C124: 0
A125: 122 | C125: 0
A126: 123 | C126: 0
A127: 124 | C127: 0
A128: 125 | C128: 0
A129: 126 | C129: 0
A130: 127 | C130: 0
A131: 128 | C131: 0
A132: 129 | C132: 0
A133: 130 | C133: =COUNT(B133) -> 0
A134: 131 | C134: 0
A135: 132 | C135: 0
A136: 133 | C136: 0
A137: 134 | C137: 0
A138: 135 | C138: 0
A139: 136 | C139: 0
A140: 137 | C140: 0
A141: 138 | C141: 0
A142: 139 | C142: 0
A143: 140 | C143: 0
A144: 141 | C144: 0
A145: 142 | C145: 0
A146: 143 | C146: 0
A147: 144 | C147: 0
A148: 145 | C148: 0
A149: 146 | C149: 0
A150: 147 | C150: 0
A151: 148 | C151: 0
A152: 149 | C152: 0
A153: 150 | C153: 0
A154: 151 | C154: 0
A155: 152 | C155: 0
A156: 153 | C156: 0
A157: 154 | C157: 0
A158: 155 | C158: 0
A159: 156 | C159: 0
A160: 157 | C160: 0
A161: 158 | C161: 0
A162: 159 | C162: 0
A163: 160 | C163: 0
A164: 161 | C164: 0
A165: 162 | C165: 0
A166: 163 | C166: 0
A167: 164 | C167: 0
A168: 165 | C168: 0
A169: 166 | C169: 0
A170: 167 | C170: 0
A171: 168 | C171: 0
A172: 169 | C172: 0
A173: 170 | C173: 0
A174: 171 | C174: 0
A175: 172 | C175: 0
A176: 173 | C176: 0
A177: 174 | C177: 0
A178: 175 | C178: 0
A179: 176 | C179: 0
A180: 177 | C180: 0
A181: 178 | C181: 0
A182: 179 | C182: 0
A183: 180 | C183: 0
A184: 181 | C184: 0
A185: 182 | C185: 0
A186: 183 | C186: 0
A187: 184 | C187: 0
A188: 185 | C188: 0
A189: 186 | C189: 0
A190: 187 | C190: 0
A191: 188 | C191: 0
A192: 189 | C192: 0
A193: 190 | C193: 0
A194: 191 | C194: 0
A195: 192 | C195: 0
A196: 193 | C196: 0
A197: 194 | C197: =COUNT(B197) -> 0
A198: 195 | C198: 0
A199: 196 | C199: 0
A200: 197 | C200: 0
... 919 more rows

Sheet ผลวิเคราะห์.01
A1: ผลการวิเคราะห์ข้อมูล กลุ่มตัวอย่าง 1 กลุ่ม และไม่ทราบค่าความแปรปรวน โดยมีสมมติฐาน ดังนี้
B2: H0 : | C2: คะแนนเฉลี่ย | E2: =กรอกข้อมูล!$B$3 -> หลังเรียน | F2: เท่ากับ | G2: =กรอกข้อมูล!$D$1006 -> 35 | H2: หรือร้อยละ | J2: =กรอกข้อมูล!$L$7 -> 70
B3: H1 : | C3: คะแนนเฉลี่ย | E3: =กรอกข้อมูล!$B$3 -> หลังเรียน | F3: มากกว่า | G3: =กรอกข้อมูล!$D$1006 -> 35 | H3: หรือมากกว่าร้อยละ | J3: =กรอกข้อมูล!$L$7 -> 70
E5: One - Sample Statistics
D6: N | E6: Mean | G6: Std. Deviation | I6: Std. Error Mean
B7: =กรอกข้อมูล!$B$3 -> หลังเรียน | D7: =กรอกข้อมูล!$B$1004 -> 31 | E7: =กรอกข้อมูล!$B$1006 -> 25.70967742 | G7: =กรอกข้อมูล!$B$1007 -> 6.078341596 | I7: =กรอกข้อมูล!$B$1008 -> 1.091702378
E10: One - Sample Test
C11: Test Value = | H11: =กรอกข้อมูล!$S$1012 -> 35
C12: t | D12: df | E12: Sig.(2-tailed) | G12: Mean Difference | I12: 0.99
I13: Confidence Interval of the Difference
I14: Lower | K14: Upper
A15: =กรอกข้อมูล!$B$3 -> หลังเรียน | C15: =กรอกข้อมูล!N1016 -> -8.509940773 | D15: =กรอกข้อมูล!O1016 -> 30 | E15: =กรอกข้อมูล!$P$1016 -> 1.700858013e-09 | G15: =กรอกข้อมูล!$R$1016 -> -9.290322581 | I15: =กรอกข้อมูล!$T$1016 -> -12.29250412 | K15: =กรอกข้อมูล!$V$1016 -> -6.288141041
A18: ตาราง..... | B18: ค่าเฉลี่ย ส่วนเบี่ยงเบนมาตรฐาน ค่าสถิติทดสอบที และระดับนัยสำคัญทางสถิติ
A19: ในการทดสอบเปรียบเทียบเกณฑ์ร้อยละ | F19: =กรอกข้อมูล!$L$7 -> 70 | G19: กับคะแนนสอบ | I19: =กรอกข้อมูล!$B$3 -> หลังเรียน | K19: ของผู้เรียน
C20: N | D20: คะแนนเต็ม | E20: Mean | G20: S.D. | H20: % of Mean | J20: t | L20: Sig. (1-tailed)
A21: =กรอกข้อมูล!$B$3 -> หลังเรียน | C21: =กรอกข้อมูล!$B$1004 -> 31 | D21: =กรอกข้อมูล!$L$6 -> 50 | E21: =กรอกข้อมูล!$B$1006 -> 25.70967742 | G21: =กรอกข้อมูล!$B$1007 -> 6.078341596 | H21: =กรอกข้อมูล!$F$1003 -> 51.41935484 | J21: =กรอกข้อมูล!$F$1004 -> -8.509940773 | K21: =กรอกข้อมูล!$F$1007 -> ** | L21: =กรอกข้อมูล!$F$1005 -> 8.504290064e-10
A22: t-table.01 = | C22: =กรอกข้อมูล!$B$1011 -> 2.749995654
A24: จากตาราง พบว่า การทดสอบ | E24: =กรอกข้อมูล!$B$3 -> หลังเรียน | F24: ของผู้เรียนมีคะแนนเฉลี่ย เท่ากับ | J24: =E21 -> 25.70967742 | K24: คะแนน
A25: คิดเป็นร้อยละ | C25: =H21 -> 51.41935484 | D25: และเมื่อเปรียบเทียบระหว่างเกณฑ์กับคะแนนสอบของผู้เรียน | J25: =กรอกข้อมูล!$B$3 -> หลังเรียน | L25: พบว่า
A26: คะแนนสอบของผู้เรียน | D26: =กรอกข้อมูล!$B$3 -> หลังเรียน | F26: =กรอกข้อมูล!$L$1009 -> สูงกว่าเกณฑ์อย่างมีนัยสำคัญทางสถิติที่ระดับ .01

Sheet ผลวิเคราะห์.05
A1: ผลการวิเคราะห์ข้อมูล กลุ่มตัวอย่าง 1 กลุ่ม และไม่ทราบค่าความแปรปรวน โดยมีสมมติฐาน ดังนี้
B2: H0 : | C2: คะแนนเฉลี่ย | E2: =กรอกข้อมูล!$B$3 -> หลังเรียน | F2: เท่ากับ | G2: =กรอกข้อมูล!$D$1006 -> 35 | H2: หรือร้อยละ | J2: =กรอกข้อมูล!$L$7 -> 70
B3: H1 : | C3: คะแนนเฉลี่ย | E3: =กรอกข้อมูล!$B$3 -> หลังเรียน | F3: มากกว่า | G3: =กรอกข้อมูล!$D$1006 -> 35 | H3: หรือมากกว่าร้อยละ | J3: =กรอกข้อมูล!$L$7 -> 70
E5: One - Sample Statistics
D6: N | E6: Mean | G6: Std. Deviation | I6: Std. Error Mean
B7: =กรอกข้อมูล!$B$3 -> หลังเรียน | D7: =กรอกข้อมูล!$B$1004 -> 31 | E7: =กรอกข้อมูล!$B$1006 -> 25.70967742 | G7: =กรอกข้อมูล!$B$1007 -> 6.078341596 | I7: =กรอกข้อมูล!$B$1008 -> 1.091702378
E10: One - Sample Test
C11: Test Value = | H11: =กรอกข้อมูล!$D$1006 -> 35
C12: t | D12: df | E12: Sig.(2-tailed) | G12: Mean Difference | I12: 0.95
I13: Confidence Interval of the Difference
I14: Lower | K14: Upper
A15: =กรอกข้อมูล!$B$3 -> หลังเรียน | C15: =กรอกข้อมูล!N1022 -> -8.509940773 | D15: =กรอกข้อมูล!O1022 -> 30 | E15: =กรอกข้อมูล!$P$1022 -> 1.700858013e-09 | G15: =กรอกข้อมูล!$R$1022 -> -9.290322581 | I15: =กรอกข้อมูล!$T$1022 -> -11.51990635 | K15: =กรอกข้อมูล!$V$1022 -> -7.06379558
A18: ตาราง..... | B18: ค่าเฉลี่ย ส่วนเบี่ยงเบนมาตรฐาน ค่าสถิติทดสอบที และระดับนัยสำคัญทางสถิติ
A19: ในการทดสอบเปรียบเทียบเกณฑ์ร้อยละ | F19: =กรอกข้อมูล!$L$7 -> 70 | G19: กับคะแนนสอบ | I19: =กรอกข้อมูล!$B$3 -> หลังเรียน | K19: ของผู้เรียน
C20: N | D20: คะแนนเต็ม | E20: Mean | G20: S.D. | H20: % of Mean | J20: t | L20: Sig. (1-tailed)
A21: =กรอกข้อมูล!$B$3 -> หลังเรียน | C21: =กรอกข้อมูล!$B$1004 -> 31 | D21: =กรอกข้อมูล!$L$6 -> 50 | E21: =กรอกข้อมูล!$B$1006 -> 25.70967742 | G21: =กรอกข้อมูล!$B$1007 -> 6.078341596 | H21: =กรอกข้อมูล!$F$1003 -> 51.41935484 | J21: =กรอกข้อมูล!$F$1004 -> -8.509940773 | K21: =กรอกข้อมูล!$G$1007 -> * | L21: =กรอกข้อมูล!$F$1005 -> 8.504290064e-10
A22: t-table.05 = | C22: =กรอกข้อมูล!$B$1009 -> 2.042272456
A24: จากตาราง พบว่า การทดสอบ | E24: =กรอกข้อมูล!$B$3 -> หลังเรียน | F24: ของผู้เรียนมีคะแนนเฉลี่ย เท่ากับ | J24: =E21 -> 25.70967742 | K24: คะแนน
A25: คิดเป็นร้อยละ | C25: =$H$21 -> 51.41935484 | D25: และเมื่อเปรียบเทียบระหว่างเกณฑ์กับคะแนนสอบของผู้เรียน | J25: =กรอกข้อมูล!$B$3 -> หลังเรียน | L25: พบว่า
A26: คะแนนสอบของผู้เรียน | D26: =กรอกข้อมูล!$B$3 -> หลังเรียน | F26: =กรอกข้อมูล!$L$1010 -> สูงกว่าเกณฑ์อย่างมีนัยสำคัญทางสถิติที่ระดับ .05

Sheet T-table
A1: t distribution critical values
A2: df | B2: 0.25 | C2: 0.2 | D2: 0.15 | E2: 0.1 | F2: 0.05 | G2: 0.025 | H2: 0.02 | I2: 0.01 | J2: 0.005 | K2: 0.0025 | L2: 0.001 | M2: 0.0005
A3: 1 | B3: 1 | C3: 1.376 | D3: 1.963 | E3: 3.0777 | F3: 6.3138 | G3: 12.7062 | H3: 15.89 | I3: 31.8207 | J3: 63.6574 | K3: 127.3 | L3: 318.3 | M3: 636.6
A4: 2 | B4: 0.8162 | C4: 1.061 | D4: 1.386 | E4: 1.8856 | F4: 2.92 | G4: 4.3027 | H4: 4.849 | I4: 6.9646 | J4: 9.9248 | K4: 14.09 | L4: 22.33 | M4: 31.6
A5: 3 | B5: 0.7649 | C5: 0.978 | D5: 1.25 | E5: 1.6377 | F5: 2.3534 | G5: 3.1824 | H5: 3.482 | I5: 4.5407 | J5: 5.8409 | K5: 7.453 | L5: 10.21 | M5: 12.92
A6: 4 | B6: 0.7407 | C6: 0.941 | D6: 1.19 | E6: 1.5332 | F6: 2.1318 | G6: 2.7764 | H6: 2.999 | I6: 3.7469 | J6: 4.6041 | K6: 5.598 | L6: 7.173 | M6: 8.61
A7: 5 | B7: 0.7267 | C7: 0.92 | D7: 1.156 | E7: 1.4759 | F7: 2.015 | G7: 2.5706 | H7: 2.757 | I7: 3.3649 | J7: 4.0322 | K7: 4.773 | L7: 5.893 | M7: 6.869
A8: 6 | B8: 0.7176 | C8: 0.906 | D8: 1.134 | E8: 1.4398 | F8: 1.9432 | G8: 2.4469 | H8: 2.612 | I8: 3.1427 | J8: 3.7074 | K8: 4.317 | L8: 5.208 | M8: 5.959
A9: 7 | B9: 0.7111 | C9: 0.896 | D9: 1.119 | E9: 1.4149 | F9: 1.8946 | G9: 2.3646 | H9: 2.517 | I9: 2.998 | J9: 3.4995 | K9: 4.029 | L9: 4.785 | M9: 5.408
A10: 8 | B10: 0.7064 | C10: 0.889 | D10: 1.108 | E10: 1.3968 | F10: 1.8595 | G10: 2.306 | H10: 2.449 | I10: 2.8965 | J10: 3.3554 | K10: 3.833 | L10: 4.501 | M10: 5.041
A11: 9 | B11: 0.7027 | C11: 0.883 | D11: 1.1 | E11: 1.383 | F11: 1.8331 | G11: 2.2622 | H11: 2.398 | I11: 2.8214 | J11: 3.2498 | K11: 3.69 | L11: 4.297 | M11: 4.781
A12: 10 | B12: 0.6998 | C12: 0.879 | D12: 1.093 | E12: 1.3722 | F12: 1.8125 | G12: 2.2281 | H12: 2.359 | I12: 2.7638 | J12: 3.1693 | K12: 3.581 | L12: 4.144 | M12: 4.587
A13: 11 | B13: 0.6974 | C13: 0.876 | D13: 1.088 | E13: 1.3634 | F13: 1.7959 | G13: 2.201 | H13: 2.328 | I13: 2.7181 | J13: 3.1058 | K13: 3.497 | L13: 4.025 | M13: 4.437
A14: 12 | B14: 0.6955 | C14: 0.873 | D14: 1.083 | E14: 1.3562 | F14: 1.7823 | G14: 2.1788 | H14: 2.303 | I14: 2.681 | J14: 3.0545 | K14: 3.428 | L14: 3.93 | M14: 4.318
A15: 13 | B15: 0.6938 | C15: 0.87 | D15: 1.079 | E15: 1.3502 | F15: 1.7709 | G15: 2.1604 | H15: 2.282 | I15: 2.6503 | J15: 3.0123 | K15: 3.372 | L15: 3.852 | M15: 4.221
A16: 14 | B16: 0.3924 | C16: 0.868 | D16: 1.076 | E16: 1.345 | F16: 1.7613 | G16: 2.1448 | H16: 2.264 | I16: 2.6245 | J16: 2.9768 | K16: 3.326 | L16: 3.787 | M16: 4.14
A17: 15 | B17: 0.6912 | C17: 0.866 | D17: 1.074 | E17: 1.3406 | F17: 1.7531 | G17: 2.1315 | H17: 2.249 | I17: 2.6025 | J17: 2.9467 | K17: 3.286 | L17: 3.733 | M17: 4.073
A18: 16 | B18: 0.6901 | C18: 0.865 | D18: 1.071 | E18: 1.3368 | F18: 1.7459 | G18: 2.1199 | H18: 2.235 | I18: 2.5835 | J18: 2.9208 | K18: 3.252 | L18: 3.686 | M18: 4.015
A19: 17 | B19: 0.6892 | C19: 0.863 | D19: 1.069 | E19: 1.3334 | F19: 1.7396 | G19: 2.1098 | H19: 2.224 | I19: 2.5669 | J19: 2.8982 | K19: 3.222 | L19: 3.646 | M19: 3.965
A20: 18 | B20: 0.6884 | C20: 0.862 | D20: 1.067 | E20: 1.3304 | F20: 1.7341 | G20: 2.1009 | H20: 2.214 | I20: 2.5524 | J20: 2.8784 | K20: 3.197 | L20: 3.611 | M20: 3.922
A21: 19 | B21: 0.6876 | C21: 0.861 | D21: 1.066 | E21: 1.3277 | F21: 1.7291 | G21: 2.093 | H21: 2.205 | I21: 2.5395 | J21: 2.8609 | K21: 3.174 | L21: 3.579 | M21: 3.883
A22: 20 | B22: 0.687 | C22: 0.86 | D22: 1.064 | E22: 1.3253 | F22: 1.7247 | G22: 2.086 | H22: 2.197 | I22: 2.528 | J22: 2.8453 | K22: 3.153 | L22: 3.552 | M22: 3.85
A23: 21 | B23: 0.6864 | C23: 0.859 | D23: 1.063 | E23: 1.3232 | F23: 1.7207 | G23: 2.0796 | H23: 2.189 | I23: 2.5177 | J23: 2.8314 | K23: 3.135 | L23: 3.527 | M23: 3.819
A24: 22 | B24: 0.6858 | C24: 0.858 | D24: 1.061 | E24: 1.3212 | F24: 1.7171 | G24: 2.0739 | H24: 2.183 | I24: 2.5083 | J24: 2.8188 | K24: 3.119 | L24: 3.505 | M24: 3.792
A25: 23 | B25: 0.6853 | C25: 0.858 | D25: 1.06 | E25: 1.3195 | F25: 1.7139 | G25: 2.0687 | H25: 2.177 | I25: 2.4999 | J25: 2.8073 | K25: 3.104 | L25: 3.485 | M25: 3.768
A26: 24 | B26: 0.6848 | C26: 0.857 | D26: 1.059 | E26: 1.3178 | F26: 1.7109 | G26: 2.0639 | H26: 2.172 | I26: 2.4922 | J26: 2.7969 | K26: 3.091 | L26: 3.467 | M26: 3.745
A27: 25 | B27: 0.6844 | C27: 0.856 | D27: 1.058 | E27: 1.3163 | F27: 1.7081 | G27: 2.0595 | H27: 2.167 | I27: 2.4851 | J27: 2.7874 | K27: 3.078 | L27: 3.45 | M27: 3.725
A28: 26 | B28: 0.684 | C28: 0.856 | D28: 1.058 | E28: 1.315 | F28: 1.7056 | G28: 2.0555 | H28: 2.162 | I28: 2.4786 | J28: 2.7787 | K28: 3.067 | L28: 3.435 | M28: 3.707
A29: 27 | B29: 0.6837 | C29: 0.855 | D29: 1.057 | E29: 1.3137 | F29: 1.7033 | G29: 2.0518 | H29: 2.15 | I29: 2.4727 | J29: 2.7707 | K29: 3.057 | L29: 3.421 | M29: 3.69
A30: 28 | B30: 0.6834 | C30: 0.855 | D30: 1.056 | E30: 1.3125 | F30: 1.7011 | G30: 2.0484 | H30: 2.154 | I30: 2.4671 | J30: 2.7633 | K30: 3.047 | L30: 3.408 | M30: 3.674
A31: 29 | B31: 0.683 | C31: 0.854 | D31: 1.055 | E31: 1.3114 | F31: 1.6991 | G31: 2.0452 | H31: 2.15 | I31: 2.462 | J31: 2.7564 | K31: 3.038 | L31: 3.396 | M31: 3.659
A32: 30 | B32: 0.6828 | C32: 0.854 | D32: 1.055 | E32: 1.3104 | F32: 1.6973 | G32: 2.0423 | H32: 2.147 | I32: 2.4573 | J32: 2.75 | K32: 3.03 | L32: 3.385 | M32: 3.646
A33: 31 | B33: 0.6825 | E33: 1.3095 | F33: 1.6955 | G33: 2.0395 | I33: 2.4528 | J33: 2.744
A34: 32 | B34: 0.6822 | E34: 1.3086 | F34: 1.6939 | G34: 2.0369 | I34: 2.4487 | J34: 2.7385
A35: 33 | B35: 0.682 | E35: 1.3077 | F35: 1.6924 | G35: 2.0345 | I35: 2.4448 | J35: 2.7333
A36: 34 | B36: 0.6818 | E36: 1.307 | F36: 1.6909 | G36: 2.0322 | I36: 2.4411 | J36: 2.7284
A37: 35 | B37: 0.6816 | E37: 1.3062 | F37: 1.6896 | G37: 2.0301 | I37: 2.4377 | J37: 2.7238
A38: 36 | B38: 0.6814 | E38: 1.3055 | F38: 1.6883 | G38: 2.0281 | I38: 2.4345 | J38: 2.7195
A39: 37 | B39: 0.6812 | E39: 1.3049 | F39: 1.6871 | G39: 2.0262 | I39: 2.4314 | J39: 2.7154
A40: 38 | B40: 0.681 | E40: 1.3042 | F40: 1.686 | G40: 2.0244 | I40: 2.4286 | J40: 2.7116
A41: 39 | B41: 0.6808 | E41: 1.3036 | F41: 1.6849 | G41: 2.0227 | I41: 2.4258 | J41: 2.7079
A42: 40 | B42: 0.6807 | C42: 0.851 | D42: 1.05 | E42: 1.3031 | F42: 1.6839 | G42: 2.0211 | H42: 2.123 | I42: 2.4233 | J42: 2.7045 | K42: 2.971 | L42: 3.307 | M42: 3.551
A43: 41 | B43: 0.6805 | E43: 1.3025 | F43: 1.6829 | G43: 2.0195 | I43: 2.4208 | J43: 2.7012
A44: 42 | B44: 0.6804 | E44: 1.302 | F44: 1.682 | G44: 2.0181 | I44: 2.4185 | J44: 2.6981
A45: 43 | B45: 0.6802 | E45: 1.3016 | F45: 1.6811 | G45: 2.0167 | I45: 2.4163 | J45: 2.6951
A46: 44 | B46: 0.6801 | E46: 1.3011 | F46: 1.6802 | G46: 2.0154 | I46: 2.4141 | J46: 2.6923
A47: 45 | B47: 0.68 | E47: 1.3006 | F47: 1.6794 | G47: 2.0141 | I47: 2.4121 | J47: 2.6896
A48: 46 | B48: 0.6799 | E48: 1.3002 | F48: 1.6787 | G48: 2.0129 | I48: 2.4102 | J48: 2.687
A49: 47 | B49: 0.6797 | E49: 1.2998 | F49: 1.6779 | G49: 2.0117 | I49: 2.4083 | J49: 2.6846
A50: 48 | B50: 0.6796 | E50: 1.2994 | F50: 1.6772 | G50: 2.0106 | I50: 2.4066 | J50: 2.6822
A51: 49 | B51: 0.6795 | E51: 1.2991 | F51: 1.6766 | G51: 2.0096 | I51: 2.4049 | J51: 2.68
A52: 50 | B52: 0.6794 | C52: 0.849 | D52: 1.047 | E52: 1.2987 | F52: 1.6759 | G52: 2.0086 | H52: 2.109 | I52: 2.4033 | J52: 2.6778 | K52: 2.937 | L52: 3.261 | M52: 3.496
A53: 51 | B53: 0.6793 | E53: 1.2984 | F53: 1.6753 | G53: 2.0076 | I53: 2.4017 | J53: 2.6757
A54: 52 | B54: 0.6792 | E54: 1.298 | F54: 1.6747 | G54: 2.0066 | I54: 2.4002 | J54: 2.6737
A55: 53 | B55: 0.6791 | E55: 1.2977 | F55: 1.6741 | G55: 2.0057 | I55: 2.3988 | J55: 2.6718
A56: 54 | B56: 0.6791 | E56: 1.2974 | F56: 1.6736 | G56: 2.0049 | I56: 2.3974 | J56: 2.67
A57: 55 | B57: 0.679 | E57: 1.2971 | F57: 1.673 | G57: 2.004 | I57: 2.3961 | J57: 2.6682
A58: 56 | B58: 0.6789 | E58: 1.2969 | F58: 1.6725 | G58: 2.0032 | I58: 2.3948 | J58: 2.6665
A59: 57 | B59: 0.6788 | E59: 1.2966 | F59: 1.672 | G59: 2.0025 | I59: 2.3936 | J59: 2.6649
A60: 58 | B60: 0.6787 | E60: 1.2963 | F60: 1.6716 | G60: 2.0017 | I60: 2.3924 | J60: 2.6633
A61: 59 | B61: 0.6787 | E61: 1.2961 | F61: 1.6711 | G61: 2.001 | I61: 2.3912 | J61: 2.6618
A62: 60 | B62: 0.6786 | C62: 0.848 | D62: 1.045 | E62: 1.2958 | F62: 1.6706 | G62: 2.0003 | H62: 2.099 | I62: 2.3901 | J62: 2.6603 | K62: 2.915 | L62: 3.232 | M62: 3.46
A63: 61 | B63: 0.6785 | E63: 1.2956 | F63: 1.6702 | G63: 1.9996 | I63: 2.389 | J63: 2.6589
A64: 62 | B64: 0.6785 | E64: 1.2954 | F64: 1.6698 | G64: 1.999 | I64: 2.388 | J64: 2.6575
A65: 63 | B65: 0.6784 | E65: 1.2951 | F65: 1.6694 | G65: 1.9983 | I65: 2.387 | J65: 2.6561
A66: 64 | B66: 0.6783 | E66: 1.2949 | F66: 1.669 | G66: 1.9977 | I66: 2.386 | J66: 2.6549
A67: 65 | B67: 0.6783 | E67: 1.2947 | F67: 1.6686 | G67: 1.9971 | I67: 2.3851 | J67: 2.6536
A68: 66 | B68: 0.6782 | E68: 1.2945 | F68: 1.6683 | G68: 1.9966 | I68: 2.3842 | J68: 2.6524
A69: 67 | B69: 0.6782 | E69: 1.2943 | F69: 1.6679 | G69: 1.996 | I69: 2.3833 | J69: 2.6512
A70: 68 | B70: 0.6781 | E70: 1.2941 | F70: 1.6676 | G70: 1.9955 | I70: 2.3824 | J70: 2.6501
A71: 69 | B71: 0.6781 | E71: 1.2939 | F71: 1.6672 | G71: 1.9949 | I71: 2.3816 | J71: 2.649
A72: 70 | B72: 0.678 | E72: 1.2938 | F72: 1.6669 | G72: 1.9944 | I72: 2.3808 | J72: 2.6479
A73: 71 | B73: 0.678 | E73: 1.2936 | F73: 1.6666 | G73: 1.9939 | I73: 2.38 | J73: 2.6469
A74: 72 | B74: 0.6779 | E74: 1.2934 | F74: 1.6663 | G74: 1.9935 | I74: 2.3793 | J74: 2.6459
A75: 73 | B75: 0.6779 | E75: 1.2933 | F75: 1.666 | G75: 1.993 | I75: 2.3785 | J75: 2.6449
A76: 74 | B76: 0.6778 | E76: 1.2931 | F76: 1.6657 | G76: 1.9925 | I76: 2.3778 | J76: 2.6439
A77: 75 | B77: 0.6778 | E77: 1.2929 | F77: 1.6654 | G77: 1.9921 | I77: 2.3771 | J77: 2.643
A78: 76 | B78: 0.6777 | E78: 1.2928 | F78: 1.6652 | G78: 1.9917 | I78: 2.3764 | J78: 3.6421
A79: 77 | B79: 0.6777 | E79: 1.2926 | F79: 1.6649 | G79: 1.9913 | I79: 2.3758 | J79: 2.6412
A80: 78 | B80: 0.6776 | E80: 1.2925 | F80: 1.6646 | G80: 1.9908 | I80: 2.3751 | J80: 2.6403
A81: 79 | B81: 0.6776 | E81: 1.2924 | F81: 1.6644 | G81: 1.9905 | I81: 2.3745 | J81: 2.6395
A82: 80 | B82: 0.6776 | C82: 0.846 | D82: 1.043 | E82: 1.2922 | F82: 1.6641 | G82: 1.9901 | H82: 2.088 | I82: 2.3739 | J82: 2.6387 | K82: 2.887 | L82: 3.195 | M82: 3.416
A83: 81 | B83: 0.6775 | E83: 1.2921 | F83: 1.6639 | G83: 1.9897 | I83: 2.3733 | J83: 2.6379
A84: 82 | B84: 0.6775 | E84: 1.292 | F84: 1.6636 | G84: 1.9893 | I84: 2.3727 | J84: 2.6371
A85: 83 | B85: 0.6775 | E85: 1.2918 | F85: 1.6634 | G85: 1.989 | I85: 2.3721 | J85: 2.6364
A86: 84 | B86: 0.6774 | E86: 1.2917 | F86: 1.6632 | G86: 1.9886 | I86: 2.3716 | J86: 2.6356
A87: 85 | B87: 0.6774 | E87: 1.2916 | F87: 1.663 | G87: 1.9883 | I87: 2.371 | J87: 2.6349
A88: 86 | B88: 0.6774 | E88: 1.2915 | F88: 1.6628 | G88: 1.9879 | I88: 2.3705 | J88: 2.6342
A89: 87 | B89: 0.6773 | E89: 1.2914 | F89: 1.6626 | G89: 1.9876 | I89: 2.37 | J89: 2.6335
A90: 88 | B90: 0.6773 | E90: 1.2912 | F90: 1.6624 | G90: 1.9873 | I90: 2.3695 | J90: 2.6329
A91: 89 | B91: 0.6773 | E91: 1.2911 | F91: 1.6622 | G91: 1.987 | I91: 2.369 | J91: 2.6322
A92: 90 | B92: 0.6772 | E92: 1.291 | F92: 1.662 | G92: 1.9867 | I92: 2.3685 | J92: 2.6316
A93: 91 | B93: 0.6772 | E93: 1.2909 | F93: 1.6618 | G93: 1.9864 | I93: 2.368 | J93: 2.6309
A94: 92 | B94: 0.6772 | E94: 1.2908 | F94: 1.6616 | G94: 1.9861 | I94: 2.3676 | J94: 2.6303
A95: 93 | B95: 0.6771 | E95: 1.2907 | F95: 1.6614 | G95: 1.9858 | I95: 2.3671 | J95: 2.6297
A96: 94 | B96: 0.6771 | E96: 1.2906 | F96: 1.6612 | G96: 1.9855 | I96: 2.3667 | J96: 2.6291
A97: 95 | B97: 0.6771 | E97: 1.2905 | F97: 1.6611 | G97: 1.9853 | I97: 2.3662 | J97: 2.6286
A98: 96 | B98: 0.6771 | E98: 1.2904 | F98: 1.6609 | G98: 1.985 | I98: 2.3658 | J98: 2.628
A99: 97 | B99: 0.677 | E99: 1.2903 | F99: 1.6607 | G99: 1.9847 | I99: 2.3654 | J99: 2.6275
A100: 98 | B100: 0.677 | E100: 1.2902 | F100: 1.6606 | G100: 1.9845 | I100: 2.365 | J100: 2.6269
A101: 99 | B101: 0.677 | E101: 1.2901 | F101: 1.6604 | G101: 1.9842 | I101: 2.3646 | J101: 2.6264
A102: 100 | B102: 0.677 | C102: 0.845 | D102: 1.042 | E102: 1.2891 | F102: 1.6602 | G102: 1.984 | H102: 2.081 | I102: 2.3642 | J102: 2.6259 | K102: 2.871 | L102: 3.174 | M102: 3.39
A103: 110 | B103: 0.6767 | E103: 1.2893 | F103: 1.6588 | G103: 1.9818 | I103: 2.3607 | J103: 2.6213
A104: 120 | B104: 0.6765 | E104: 1.2886 | F104: 1.6577 | G104: 1.9799 | I104: 2.3578 | J104: 2.6174
A105: 1000 | B105: 0.675 | C105: 0.842 | D105: 1.037 | E105: 1.282 | F105: 1.646 | G105: 1.962 | H105: 2.056 | I105: 2.33 | J105: 2.581 | K105: 2.813 | L105: 3.098 | M105: 3.3
A106: inf. | B106: 0.6745 | C106: 0.841 | D106: 1.036 | E106: 1.2816 | F106: 1.6449 | G106: 1.96 | H106: 2.054 | I106: 2.3263 | J106: 2.5758 | K106: 2.807 | L106: 3.091 | M106: 3.291
A107: source: http://www.union.edu/PUBLIC/BIODEPT/t.html
